bitfinex/quotes_SOLUSD_20250815
["timestamp","ask_amount","ask_price","bid_price","bid_amount"]
[1755239922524,0.06,197.48,197.43,8.7555996]
[1755239922693,0.06,197.48,197.47,8.0755996]
[1755239922893,36.26,197.48,197.47,8.0755996]
[1755239923216,36.26,197.48,197.47,13.81965996]
[1755239925714,36.26,197.48,197.46,13.13989306]
[1755239925908,36.26,197.48,197.46,5.06429346]
[1755239928008,36.26,197.48,197.46,8.0755996]
[1755239928318,36.26,197.48,197.45,13.1401729]
[1755239928502,131.18,197.47,197.42,0.68]
[1755239928705,167.36,197.46,197.43,8.0755996]
[1755239929019,167.36,197.46,197.42,8.0755996]
[1755239929218,167.36,197.46,197.42,8.7555996]
[1755239929602,167.36,197.46,197.43,0.68]
[1755239930323,167.36,197.46,197.43,5.74488068]
[1755239930926,167.36,197.46,197.43,5.06488068]
[1755239931710,167.36,197.46,197.42,5.06534292]
[1755239931915,23.18181517,197.43,197.4,0.03]
[1755239932116,36.18,197.42,197.4,0.03]
[1755239932519,36.87,197.42,197.4,0.03]
[1755239932928,36.18,197.42,197.4,0.03]
[1755239933222,36.18,197.42,197.41,0.68]
[1755239933424,36.18,197.42,197.4,5.09576747]
[1755239933725,36.18,197.42,197.4,0.03]
[1755239934026,36.18,197.42,197.4,8.1055996]
[1755239934223,36.18,197.42,197.41,0.68]
[1755239934611,36.18,197.42,197.4,0.03]
[1755239935606,36.18,197.42,197.41,0.68]
[1755239935807,36.18,197.42,197.4,5.09584214]
[1755239936307,36.87,197.42,197.4,0.03]
[1755239937217,36.18,197.42,197.4,0.03]
[1755239937415,36.87,197.42,197.4,0.03]
[1755239937612,36.18,197.42,197.4,0.03]
[1755239937932,36.18,197.42,197.41,0.68]
[1755239938229,36.18,197.42,197.4,8.1055996]
[1755239938926,36.18,197.42,197.4,5.09574695]
[1755239939708,8.7655996,197.41,197.4,0.03]
[1755239940327,23.87181517,197.41,197.4,0.03]
[1755239943315,32.34121125,197.41,197.4,0.03]
[1755239945033,32.40121125,197.41,197.4,0.03]
[1755239945710,62.40121125,197.41,197.4,0.03]
[1755239946318,93.53561174,197.41,197.4,0.03]
[1755239946524,63.53561174,197.41,197.4,0.03]
[1755239946733,12.22939617,197.41,197.4,0.03]
[1755239946918,0.06,197.41,197.4,0.74]
[1755239947241,36.26,197.41,197.4,0.74]
[1755239947622,36.26,197.41,197.4,0.03]
[1755239948736,36.26,197.41,197.4,0.74]
[1755239949138,36.26,197.41,197.4,0.03]
[1755239952625,36.26,197.41,197.4,0.74]
[1755239952825,36.26,197.41,197.4,5.80585612]
[1755239953836,36.26,197.41,197.4,0.03]
[1755239957046,36.26,197.41,197.4,0.74]
[1755239957243,36.26,197.41,197.4,0.03]
[1755239957635,50.01116459,197.41,197.4,0.03]
[1755239957835,36.26,197.41,197.4,0.03]
[1755239962240,36.92,197.41,197.4,0.03]
[1755239962861,50.01116459,197.41,197.4,0.03]
[1755239963165,36.92,197.41,197.4,0.03]
[1755239966062,50.01116459,197.41,197.4,0.03]
[1755239966254,0.06,197.41,197.4,0.03]
[1755239966564,36.24,197.41,197.4,0.03]
[1755239967142,36.9,197.41,197.4,0.03]
[1755239967459,36.24,197.41,197.4,0.03]
[1755239967859,36.9,197.41,197.4,0.03]
[1755239968538,36.24,197.41,197.4,0.03]
[1755239969981,44.98733866,197.41,197.4,0.03]
[1755239970364,36.24,197.41,197.4,0.03]
[1755239972559,36.89,197.41,197.4,0.03]
[1755239973146,36.24,197.41,197.4,0.03]
[1755239973855,36.89,197.41,197.4,0.03]
[1755239974557,36.24,197.41,197.4,0.03]
[1755239974759,36.89,197.41,197.4,0.03]
[1755239975859,36.24,197.41,197.4,0.03]
[1755239976967,36.89,197.41,197.4,0.03]
[1755239977771,36.24,197.41,197.4,0.03]
[1755239977978,44.32733866,197.41,197.4,0.03]
[1755239978967,36.24,197.41,197.4,0.03]
[1755239979166,48.39006706,197.41,197.4,0.03]
[1755239983579,47.74006706,197.41,197.4,0.03]
[1755239984482,48.39006706,197.41,197.4,0.03]
[1755239985760,63.49628263,197.41,197.4,0.03]
[1755239989861,68.56188214,197.41,197.4,0.03]
[1755239991884,84.68023872,197.41,197.38,0.03]
[1755239992079,49.19355423,197.39,197.38,0.03]
[1755239992265,88.76628263,197.39,197.38,0.03]
[1755239992462,89.41628263,197.39,197.38,0.03]
[1755239992982,98.2749741,197.39,197.38,0.03]
[1755239993369,94.4823954,197.39,197.38,0.03]
[1755239993569,124.4823954,197.39,197.38,0.03]
[1755239993882,128.27417706,197.39,197.38,0.03]
[1755239994089,124.4823954,197.39,197.38,0.03]
[1755239994409,128.27412342,197.39,197.34,0.03]
[1755239994690,8.08733866,197.35,197.34,0.03]
[1755239994985,47.66006706,197.35,197.34,0.03]
[1755239995182,44.24733866,197.35,197.34,0.69]
[1755239995965,47.65753597,197.35,197.34,0.03]
[1755239996161,44.89733866,197.35,197.34,0.03]
[1755239996585,63.41307719,197.35,197.34,0.03]
[1755239996975,68.48021678,197.35,197.34,0.03]
[1755239998077,98.48021678,197.35,197.34,0.03]
[1755240000291,98.48021678,197.35,197.32,0.03]
[1755240000292,49.19355423,197.33,197.32,0.03]
[1755240000465,88.76307719,197.33,197.32,0.03]
[1755240000786,89.41307719,197.33,197.32,0.03]
[1755240001376,119.41307719,197.33,197.32,0.03]
[1755240001699,89.41307719,197.33,197.32,0.03]
[1755240002085,89.41307719,197.33,197.3,0.03]
[1755240002086,15.10621557,197.32,197.3,0.03]
[1755240002279,179.55686162,197.31,197.3,0.03]
[1755240002476,195.34307719,197.31,197.28,0.5167899]
[1755240002679,23.19355423,197.29,197.28,0.5167899]
[1755240002878,59.35355423,197.29,197.28,0.5167899]
[1755240003076,60.03355423,197.29,197.28,0.5167899]
[1755240004087,65.10223485,197.29,197.28,0.5167899]
[1755240006082,65.10223485,197.29,197.23,0.72]
[1755240006270,8.08733866,197.24,197.23,0.72]
[1755240006472,44.24733866,197.24,197.21,5.79071672]
[1755240006695,44.24733866,197.24,197.22,0.72]
[1755240006896,44.24733866,197.24,197.19,0.72]
[1755240006897,140.66733866,197.23,197.19,0.72]
[1755240007103,8.08733866,197.2,197.19,0.72]
[1755240007397,44.24733866,197.2,197.18,0.2]
[1755240007605,8.08733866,197.19,197.18,0.92]
[1755240007789,8.08733866,197.19,197.18,0.2]
[1755240008174,8.08733866,197.19,197.18,0.92]
[1755240008592,8.08733866,197.19,197.18,0.2]
[1755240009099,8.76733866,197.19,197.18,0.2]
[1755240009302,8.08733866,197.19,197.18,5.99149816]
[1755240009599,44.24733866,197.19,197.18,5.99149816]
[1755240009985,44.24733866,197.19,197.18,0.92]
[1755240010996,44.24733866,197.19,197.18,0.2]
[1755240011401,44.92733866,197.19,197.18,0.2]
[1755240012099,65.1048053,197.19,197.18,0.2]
[1755240013698,60.03355423,197.19,197.18,0.2]
[1755240013900,59.35355423,197.19,197.18,0.2]
[1755240014893,26.0,197.22,197.18,0.92]
[1755240015094,36.16,197.21,197.18,0.92]
[1755240015291,36.16,197.21,197.19,0.72]
[1755240015495,36.16,197.21,197.2,0.72]
[1755240016925,168.06,197.21,197.2,0.72]
[1755240017325,168.06,197.21,197.2,13.87833257]
[1755240017489,131.9,197.25,197.2,26.55581735]
[1755240017700,131.9,197.25,197.22,8.08733866]
[1755240017701,36.16,197.24,197.22,8.08733866]
[1755240018005,36.16,197.24,197.23,8.80733866]
[1755240018194,36.16,197.24,197.23,13.87756124]
[1755240018393,36.16,197.25,197.23,13.87756124]
[1755240018595,15.10621557,197.32,197.24,8.80733866]
[1755240018804,36.16,197.31,197.26,8.08733866]
[1755240018996,36.16,197.31,197.27,0.72]
[1755240019409,36.16,197.31,197.24,8.08733866]
[1755240019410,8.08733866,197.3,197.24,8.08733866]
[1755240019723,44.24733866,197.29,197.24,0.72]
[1755240019909,8.08733866,197.27,197.24,0.72]
[1755240020119,36.16,197.26,197.24,0.72]
[1755240020595,44.24733866,197.26,197.24,5.78983424]
[1755240020791,44.24733866,197.26,197.24,5.06983424]
[1755240021123,8.08733866,197.25,197.19,5.79125107]
[1755240021304,8.08733866,197.23,197.19,5.79125107]
[1755240021611,36.16,197.22,197.2,0.72]
[1755240021820,36.16,197.22,197.21,0.72]
[1755240022313,36.16,197.22,197.21,5.79073677]
[1755240023813,44.24733866,197.22,197.19,5.07123289]
[1755240023999,8.08733866,197.2,197.19,5.07123289]
[1755240024200,36.16,197.2,197.19,5.07123289]
[1755240024795,36.16,197.2,197.19,5.79123289]
[1755240026015,36.16,197.21,197.19,5.79123289]
[1755240026410,36.16,197.21,197.2,0.72]
[1755240027510,36.16,197.21,197.19,5.07123289]
[1755240028119,44.24733866,197.21,197.19,5.07123289]
[1755240028320,44.92733866,197.21,197.19,5.07123289]
[1755240028703,44.24733866,197.21,197.19,5.07123289]
[1755240030508,36.16,197.21,197.19,5.07123289]
[1755240030708,36.16,197.21,197.19,5.79123289]
[1755240031106,36.16,197.21,197.19,5.07123289]
[1755240031420,44.95733866,197.21,197.19,5.07123289]
[1755240031620,36.87,197.21,197.19,5.07123289]
[1755240031799,36.16,197.21,197.19,5.07123289]
[1755240032622,36.16,197.21,197.2,0.71]
[1755240032822,131.9,197.22,197.2,8.79733866]
[1755240033024,168.04,197.22,197.2,0.71]
[1755240033534,176.83733866,197.22,197.19,5.07123289]
[1755240033710,8.08733866,197.21,197.19,5.07123289]
[1755240033909,36.14,197.2,197.19,5.07123289]
[1755240034936,36.85,197.2,197.19,5.07123289]
[1755240035137,36.14,197.2,197.19,5.07123289]
[1755240035813,36.14,197.2,197.18,0.2]
[1755240036014,36.14,197.2,197.18,5.2714679]
[1755240037112,132.61,197.22,197.19,8.79733866]
[1755240037113,131.9,197.22,197.19,8.79733866]
[1755240037415,131.9,197.3,197.21,8.08733866]
[1755240037609,0.71,197.29,197.24,8.08733866]
[1755240037807,36.14,197.28,197.26,5.06945148]
[1755240039634,36.85,197.28,197.26,5.06945148]
[1755240039809,36.85,197.28,197.25,5.06970849]
[1755240040709,36.14,197.28,197.25,5.06970849]
[1755240041434,0.71,197.27,197.25,5.06970849]
[1755240041635,36.14,197.26,197.25,5.06970849]
[1755240042043,0.06,197.32,197.25,5.06970849]
[1755240042044,0.06,197.32,197.25,26.54131837]
[1755240042221,36.2,197.32,197.29,8.08733866]
[1755240042712,36.2,197.32,197.29,0.71]
[1755240042913,36.2,197.32,197.28,8.08733866]
[1755240043132,36.91,197.32,197.28,8.08733866]
[1755240043414,36.2,197.32,197.29,8.08733866]
[1755240043946,36.2,197.32,197.29,8.79733866]
[1755240044513,36.2,197.32,197.3,5.06842372]
[1755240045526,0.71,197.31,197.3,5.06842372]
[1755240045707,0.71,197.31,197.26,13.15679014]
[1755240045913,8.08733866,197.29,197.26,5.06945148]
[1755240046115,36.12,197.28,197.26,5.06945148]
[1755240046334,36.83,197.28,197.26,5.06945148]
[1755240046832,8.79733866,197.27,197.23,5.07022258]
[1755240047051,36.12,197.26,197.23,5.07022258]
[1755240047251,36.83,197.26,197.23,5.07022258]
[1755240047712,8.08733866,197.24,197.19,13.4179915]
[1755240047917,173.06621557,197.32,197.19,12.7079915]
[1755240047918,44.91733866,197.23,197.19,12.7079915]
[1755240048118,36.12,197.22,197.19,12.7079915]
[1755240048313,36.12,197.22,197.2,5.07099391]
[1755240048547,36.83,197.22,197.2,5.07099391]
[1755240048717,44.91733866,197.22,197.19,5.10125107]
[1755240048916,8.08733866,197.2,197.19,0.03]
[1755240049111,44.20733866,197.2,197.19,0.03]
[1755240049453,8.79733866,197.27,197.19,8.82733866]
[1755240049644,36.12,197.26,197.2,8.08733866]
[1755240050140,36.12,197.26,197.21,8.08733866]
[1755240050334,0.71,197.25,197.2,8.08733866]
[1755240050718,0.71,197.25,197.21,5.07073677]
[1755240050918,0.71,197.24,197.21,5.07073677]
[1755240051236,36.12,197.23,197.21,5.07073677]
[1755240052323,36.12,197.23,197.2,13.15833257]
[1755240052641,36.12,197.23,197.2,13.86833257]
[1755240053219,36.12,197.23,197.2,13.15833257]
[1755240053421,8.79733866,197.22,197.2,5.07099391]
[1755240053632,0.71,197.21,197.2,5.07099391]
[1755240053921,0.71,197.21,197.19,0.03]
[1755240053922,8.79733866,197.21,197.19,5.10120489]
[1755240054131,8.79733866,197.2,197.19,0.03]
[1755240054530,44.91733866,197.2,197.19,0.03]
[1755240055848,0.71,197.26,197.19,8.82733866]
[1755240056044,0.71,197.26,197.23,8.08733866]
[1755240056224,36.12,197.25,197.23,8.08733866]
[1755240056428,36.12,197.25,197.24,8.79733866]
[1755240056622,36.12,197.25,197.24,13.81774198]
[1755240056937,36.12,197.27,197.24,13.81774198]
[1755240057147,36.12,197.27,197.25,13.10774198]
[1755240057348,36.12,197.27,197.25,13.81774198]
[1755240057660,36.12,197.27,197.26,5.06945148]
[1755240058533,0.06,197.32,197.26,31.56082217]
[1755240058724,36.12,197.31,197.3,13.10774198]
[1755240058923,36.12,197.31,197.29,13.10774198]
[1755240059544,36.12,197.31,197.3,5.06842372]
[1755240061059,0.06,197.32,197.3,18.8961657]
[1755240061353,0.06,197.32,197.31,13.82774198]
[1755240061653,0.06,197.32,197.31,18.89590882]
[1755240062852,1e-08,197.34,197.31,18.89590882]
[1755240063027,0.06,197.37,197.33,39.10774198]
[1755240063348,0.06,197.37,197.36,13.10774198]
[1755240063742,0.06,197.37,197.36,18.17462483]
[1755240065150,0.06,197.37,197.35,5.06713959]
[1755240065332,0.06,197.37,197.36,13.10774198]
[1755240066358,0.06,197.37,197.36,13.82774198]
[1755240067357,0.06,197.37,197.36,18.89462483]
[1755240069437,0.06,197.39,197.37,13.10774198]
[1755240069633,0.06,197.39,197.37,13.82774198]
[1755240069840,1e-08,197.38,197.37,0.72]
[1755240070141,1e-08,197.38,197.37,13.82774198]
[1755240071076,1e-08,197.39,197.38,5.06636943]
[1755240071374,1e-08,197.39,197.38,18.17411141]
[1755240071536,1e-08,197.39,197.38,5.78636943]
[1755240071740,1e-08,197.39,197.38,18.89411141]
[1755240072432,1e-08,197.39,197.38,18.17411141]
[1755240073133,1e-08,197.39,197.38,5.06636943]
[1755240074237,1e-08,197.39,197.38,18.17411141]
[1755240076762,1e-08,197.39,197.38,13.15164458]
[1755240077472,1e-08,197.39,197.38,13.87164458]
[1755240077967,1e-08,197.39,197.38,13.15164458]
[1755240078164,0.70000001,197.39,197.38,5.06636943]
[1755240078674,1e-08,197.39,197.38,5.06636943]
[1755240078977,0.70000001,197.39,197.38,5.06636943]
[1755240079339,0.70000001,197.39,197.35,5.06713959]
[1755240079546,8.08527515,197.36,197.35,5.06713959]
[1755240079938,8.78527515,197.36,197.32,5.06790999]
[1755240080256,8.78527515,197.35,197.32,5.06790999]
[1755240080456,8.08527515,197.35,197.32,5.06790999]
[1755240080647,0.7,197.34,197.32,5.06790999]
[1755240081362,8.08527515,197.35,197.3,17.73948302]
[1755240081569,8.08527515,197.36,197.3,18.45948302]
[1755240081771,8.08527515,197.36,197.31,0.72]
[1755240082157,8.78527515,197.36,197.31,0.72]
[1755240083149,1e-08,197.39,197.35,8.08527515]
[1755240083475,1e-08,197.39,197.38,13.15164458]
[1755240083765,1e-08,197.39,197.38,5.06636943]
[1755240084164,1e-08,197.39,197.38,13.15164458]
[1755240084747,1e-08,197.39,197.38,5.06636943]
[1755240085449,0.70000001,197.39,197.38,5.06636943]
[1755240085649,0.70000001,197.39,197.36,5.06666948]
[1755240085870,0.7,197.38,197.36,5.06666948]
[1755240086090,0.7,197.37,197.36,5.06666948]
[1755240086751,13.79752003,197.39,197.36,5.06666948]
[1755240086950,0.7,197.38,197.36,5.06666948]
[1755240087150,13.09752003,197.39,197.36,5.06666948]
[1755240087351,13.09752003,197.39,197.36,18.8841895]
[1755240087352,1e-08,197.39,197.36,18.8841895]
[1755240087580,1e-08,197.39,197.34,12.66798896]
[1755240087581,1e-08,197.39,197.38,5.06636943]
[1755240089654,1e-08,197.39,197.37,5.06662613]
[1755240090051,1e-08,197.39,197.38,13.09752002]
[1755240090252,1e-08,197.39,197.38,13.81752002]
[1755240091165,1e-08,197.39,197.38,13.09752002]
[1755240091652,1e-08,197.39,197.38,18.87388945]
[1755240093163,1e-08,197.41,197.4,26.0]
[1755240093481,0.06,197.47,197.42,26.0]
[1755240093665,0.06,197.47,197.46,18.16183684]
[1755240095970,0.06,197.47,197.46,5.06431682]
[1755240096161,0.06,197.47,197.46,18.16183684]
[1755240098458,0.06,197.47,197.46,18.87183684]
[1755240098665,0.06,197.47,197.46,5.77431682]
[1755240098863,0.06,197.48,197.46,18.87183684]
[1755240099060,0.06,197.48,197.47,13.80752002]
[1755240099978,0.06,197.48,197.47,18.87158038]
[1755240100283,0.06,197.48,197.47,18.16158038]
[1755240101778,0.06,197.48,197.46,5.06431682]
[1755240101972,0.06,197.48,197.47,13.09752002]
[1755240102667,0.06,197.48,197.47,13.80752002]
[1755240102864,0.06,197.48,197.47,49.86752002]
[1755240103467,0.06,197.48,197.47,51.89607202]
[1755240103991,0.06,197.48,197.47,56.96013238]
[1755240104562,0.06,197.48,197.47,20.90013238]
[1755240104770,0.06,197.48,197.47,56.25013238]
[1755240105369,0.06,197.48,197.47,43.15261236]
[1755240105580,0.06,197.48,197.47,56.25013238]
[1755240105884,0.06,197.48,197.47,54.22158038]
[1755240106567,0.06,197.48,197.47,56.25013238]
[1755240106967,0.06,197.48,197.47,18.16158038]
[1755240107186,0.06,197.48,197.47,54.22158038]
[1755240107492,0.06,197.48,197.47,56.25013238]
[1755240107689,0.06,197.48,197.47,54.22158038]
[1755240108781,0.06,197.49,197.47,49.90998671]
[1755240108965,0.06,197.49,197.48,8.07592635]
[1755240109170,0.06,197.49,197.48,8.78592635]
[1755240109507,0.06,197.49,197.48,0.71]
[1755240109666,0.06,197.49,197.48,8.78592635]
[1755240110300,0.06,197.51,197.49,26.0]
[1755240110598,0.06,197.54,197.5,70.13592635]
[1755240110765,0.06,197.54,197.53,13.13844849]
[1755240111477,0.06,197.54,197.53,5.06252214]
[1755240111684,0.73,197.54,197.53,5.06252214]
[1755240112786,8.80592635,197.54,197.51,5.06303478]
[1755240112995,0.67,197.53,197.51,5.06303478]
[1755240113196,0.67,197.52,197.51,5.06303478]
[1755240113970,0.06,197.54,197.51,13.13896113]
[1755240114188,0.06,197.54,197.52,8.07592635]
[1755240114578,0.06,197.54,197.51,49.19896113]
[1755240114806,0.06,197.54,197.51,54.19617531]
[1755240115501,0.06,197.54,197.51,41.12303478]
[1755240115682,0.73,197.54,197.51,54.19617531]
[1755240116484,0.67,197.53,197.51,41.12303478]
[1755240117711,0.06,197.54,197.51,41.12303478]
[1755240117884,0.06,197.54,197.48,5.06380392]
[1755240117885,13.74314053,197.52,197.48,5.06380392]
[1755240118191,0.67,197.51,197.48,5.06380392]
[1755240119288,0.67,197.5,197.48,5.06380392]
[1755240119603,0.67,197.49,197.48,5.06380392]
[1755240119809,0.67,197.51,197.48,5.06380392]
[1755240120011,0.67,197.53,197.48,18.13694445]
[1755240120211,0.06,197.54,197.48,18.13694445]
[1755240120503,0.67,197.52,197.48,18.13694445]
[1755240121214,13.07314053,197.53,197.48,5.06380392]
[1755240121388,0.72,197.51,197.48,5.06380392]
[1755240121587,0.06,197.54,197.5,13.07314053]
[1755240121985,0.06,197.54,197.5,13.72314053]
[1755240122184,0.06,197.54,197.5,13.07314053]
[1755240122386,0.06,197.54,197.53,13.07314053]
[1755240122809,0.06,197.54,197.53,49.11314053]
[1755240123201,0.06,197.54,197.53,41.10252214]
[1755240123505,0.78,197.54,197.53,41.10252214]
[1755240124302,0.06,197.54,197.53,41.10252214]
[1755240124883,0.78,197.54,197.53,41.10252214]
[1755240125084,0.78,197.54,197.53,5.06252214]
[1755240125298,13.85314053,197.54,197.51,5.06297742]
[1755240125511,13.79314053,197.53,197.51,5.06297742]
[1755240125712,0.72,197.52,197.51,5.06297742]
[1755240126197,0.78,197.54,197.51,5.06297742]
[1755240126586,0.72,197.53,197.51,5.06297742]
[1755240126986,0.72,197.52,197.51,5.06297742]
[1755240127312,0.72,197.53,197.5,5.06329113]
[1755240127489,13.13314053,197.54,197.5,5.06329113]
[1755240127693,0.72,197.52,197.5,5.06329113]
[1755240128197,13.85314053,197.54,197.5,5.06329113]
[1755240128385,13.13314053,197.54,197.5,5.06329113]
[1755240128585,0.72,197.53,197.5,5.06329113]
[1755240129013,0.06,197.54,197.5,17.72151897]
[1755240129307,0.06,197.54,197.53,18.13566267]
[1755240129532,0.06,197.54,197.53,54.17566267]
[1755240129692,0.06,197.54,197.53,54.82566267]
[1755240130787,0.1,197.59,197.57,26.0]
[1755240130983,1e-08,197.58,197.57,75.11314053]
[1755240131484,1e-08,197.58,197.57,75.76314053]
[1755240131709,1e-08,197.58,197.57,75.11314053]
[1755240131888,1e-08,197.58,197.57,62.04]
[1755240132209,1e-08,197.58,197.56,41.10076653]
[1755240132397,1e-08,197.58,197.57,36.04]
[1755240132799,1e-08,197.58,197.57,41.10149719]
[1755240133204,1e-08,197.58,197.57,5.06149719]
[1755240133398,0.72000001,197.58,197.57,41.10149719]
[1755240133815,1e-08,197.58,197.57,41.10149719]
[1755240135009,1e-08,197.58,197.56,5.06172153]
[1755240135010,0.72000001,197.58,197.56,5.06172153]
[1755240135199,1e-08,197.58,197.56,5.06172153]
[1755240135723,0.72,197.57,197.56,5.06172153]
[1755240136019,1e-08,197.58,197.56,5.06172153]
[1755240136390,0.72000001,197.58,197.56,5.06172153]
[1755240136812,0.72000001,197.58,197.55,5.06200961]
[1755240137208,13.07314053,197.56,197.51,26.0]
[1755240137413,0.72,197.55,197.52,5.06277845]
[1755240137588,13.79314053,197.57,197.52,5.06277845]
[1755240137794,1e-08,197.58,197.54,13.07314053]
[1755240137994,1e-08,197.58,197.53,36.69]
[1755240137995,1e-08,197.58,197.55,36.04]
[1755240138214,1e-08,197.58,197.57,13.07314053]
[1755240138398,1e-08,197.58,197.56,13.72314053]
[1755240138606,1e-08,197.58,197.55,49.76314053]
[1755240139107,1e-08,197.58,197.56,5.06175339]
[1755240139422,1e-08,197.58,197.56,18.13489392]
[1755240141623,1e-08,197.58,197.56,5.06175339]
[1755240141799,1e-08,197.58,197.56,18.13489392]
[1755240142000,1e-08,197.58,197.56,5.06175339]
[1755240142310,1e-08,197.58,197.56,31.71175339]
[1755240142514,0.72000001,197.58,197.56,5.06175339]
[1755240142694,13.79314053,197.57,197.52,26.0]
[1755240142900,13.07314053,197.55,197.52,26.0]
[1755240143103,13.07314053,197.56,197.52,26.0]
[1755240143323,13.79314053,197.56,197.52,26.0]
[1755240143524,1e-08,197.58,197.52,39.07314053]
[1755240143698,13.79314054,197.58,197.52,75.11314053]
[1755240143899,13.79314054,197.58,197.52,62.04]
[1755240144309,13.79314054,197.58,197.53,5.06252214]
[1755240144542,13.07314054,197.58,197.53,5.06252214]
[1755240144700,0.72,197.57,197.53,5.06252214]
[1755240144904,0.72,197.56,197.53,5.06252214]
[1755240145413,13.79314054,197.58,197.53,5.06252214]
[1755240145620,1e-08,197.58,197.53,17.71882751]
[1755240145929,1e-08,197.58,197.54,0.65]
[1755240146101,1e-08,197.58,197.57,13.07314053]
[1755240146299,1e-08,197.58,197.57,54.17463772]
[1755240146504,1e-08,197.58,197.57,41.10149719]
[1755240147827,1e-08,197.58,197.57,5.06149719]
[1755240148201,1e-08,197.58,197.57,5.71149719]
[1755240149301,1e-08,197.58,197.57,5.06149719]
[1755240152512,0.69000001,197.58,197.57,5.06149719]
[1755240152714,13.76314054,197.58,197.55,31.06176322]
[1755240152910,0.69,197.57,197.55,67.08176322]
[1755240154014,0.69,197.56,197.55,41.08176322]
[1755240154401,0.69,197.56,197.55,5.06176322]
[1755240154608,13.76314053,197.56,197.53,0.03]
[1755240154830,13.07314053,197.54,197.53,0.03]
[1755240155209,13.76314053,197.54,197.53,0.03]
[1755240156341,56.87848144,197.54,197.53,0.03]
[1755240156511,68.29117811,197.54,197.53,0.03]
[1755240156909,19.19803758,197.54,197.53,0.03]
[1755240157146,13.76314053,197.54,197.53,0.03]
[1755240157802,33.93162197,197.54,197.53,0.03]
[1755240158007,37.33288949,197.54,197.53,0.03]
[1755240160640,73.37288949,197.54,197.53,0.03]
[1755240160833,103.37288949,197.54,197.53,0.03]
[1755240162018,34.09126752,197.54,197.53,0.03]
[1755240162221,66.04,197.54,197.53,0.03]
[1755240162535,49.11314053,197.55,197.53,0.03]
[1755240162738,36.04,197.55,197.53,0.03]
[1755240167010,36.04,197.55,197.53,0.74]
[1755240167414,36.04,197.55,197.53,0.03]
[1755240168643,36.04,197.54,197.53,0.03]
[1755240169343,13.76314053,197.56,197.53,0.03]
[1755240169519,36.04,197.55,197.53,0.03]
[1755240169920,0.69,197.56,197.53,0.03]
[1755240170327,36.04,197.55,197.53,0.03]
[1755240172044,36.04,197.54,197.53,0.03]
[1755240174145,36.73,197.54,197.53,0.03]
[1755240174344,36.04,197.54,197.53,0.03]
[1755240180564,36.73,197.54,197.53,0.03]
[1755240181028,147.00621557,197.53,197.51,0.03]
[1755240181227,59.22227731,197.52,197.51,0.03]
[1755240181544,59.87227731,197.52,197.51,0.03]
[1755240181756,51.79621557,197.52,197.51,0.03]
[1755240181921,59.87227731,197.52,197.51,0.03]
[1755240185052,68.33340683,197.52,197.51,0.03]
[1755240185345,64.93505576,197.52,197.51,0.03]
[1755240187548,68.33327535,197.52,197.51,0.03]
[1755240188434,70.97471483,197.52,197.51,0.03]
[1755240189031,100.97471483,197.52,197.51,0.03]
[1755240189430,62.29327535,197.52,197.51,0.03]
[1755240189742,68.33327535,197.52,197.51,0.03]
[1755240190054,70.97480045,197.52,197.51,0.03]
[1755240190832,100.97480045,197.52,197.51,0.03]
[1755240193348,98.33327535,197.52,197.51,0.03]
[1755240193923,100.97483566,197.52,197.51,0.03]
[1755240194960,131.81,197.49,197.48,0.03]
[1755240195130,79.17960926,197.49,197.48,0.03]